bitfinex/quotes_SOLUSD_20250718
["timestamp","ask_amount","ask_price","bid_price","bid_amount"]
[1752796801054,0.2,175.9,175.89,0.69]
[1752796805365,1e-08,175.91,175.89,29.95]
[1752796805559,1e-08,175.92,175.89,30.9357]
[1752796805759,1e-08,175.92,175.9,17.48468397]
[1752796805961,1e-08,175.95,175.9,106.28468397]
[1752796806170,1e-08,175.95,175.92,16.78468397]
[1752796806556,1e-08,175.97,175.94,16.78468397]
[1752796806950,1e-08,175.97,175.96,16.78468397]
[1752796807151,1e-08,175.97,175.96,46.02468397]
[1752796807369,1e-08,175.97,175.96,52.40779376]
[1752796810361,1e-08,175.97,175.96,23.16779376]
[1752796810562,1e-08,175.97,175.96,52.38779376]
[1752796811881,1e-08,175.97,175.96,23.16779376]
[1752796812082,1e-08,175.97,175.96,52.38779376]
[1752796812271,0.72000001,175.97,175.96,5.68310979]
[1752796812471,1e-08,175.97,175.96,34.90310979]
[1752796812785,1e-08,175.97,175.96,35.60310979]
[1752796813164,1e-08,175.97,175.96,52.38779376]
[1752796814585,1e-08,175.97,175.96,52.40779376]
[1752796815084,0.2,176.01,175.97,16.78468397]
[1752796815275,0.2,176.01,175.97,106.28468397]
[1752796815582,0.2,176.01,175.99,16.78468397]
[1752796815783,0.2,176.01,176.0,29.26]
[1752796815964,0.2,176.01,176.0,35.64181818]
[1752796817292,0.2,176.01,176.0,34.92181818]
[1752796820174,0.2,176.01,176.0,35.62181818]
[1752796821194,0.2,176.01,176.0,34.92181818]
[1752796822280,0.2,176.01,176.0,35.62181818]
[1752796822877,0.2,176.01,176.0,34.92181818]
[1752796823277,0.9,176.01,176.0,34.92181818]
[1752796823790,0.2,176.01,176.0,34.90181818]
[1752796826497,0.9,176.01,175.99,5.68214103]
[1752796826797,0.2,176.01,176.0,29.22]
[1752796827505,0.9,176.01,176.0,29.22]
[1752796827886,0.9,176.01,175.99,5.68214103]
[1752796828092,0.2,176.01,176.0,29.22]
[1752796828602,0.9,176.01,176.0,34.90181818]
[1752796829310,0.9,176.01,175.96,14.20777449]
[1752796829481,0.7,176.0,175.97,34.90278683]
[1752796829683,0.7,176.0,175.97,29.22]
[1752796829684,0.56882821,175.99,175.97,29.22]
[1752796829899,0.7,175.98,175.97,29.22]
[1752796832006,2.2156,176.0,175.97,29.22]
[1752796832408,0.7,175.99,175.97,29.22]
[1752796832612,1.5156,176.0,175.97,29.22]
[1752796832797,0.7,175.99,175.98,5.68246391]
[1752796833098,2.2156,176.0,175.98,34.90246391]
[1752796833803,1.5156,176.0,175.98,34.90246391]
[1752796834107,0.7,175.99,175.98,34.90246391]
[1752796835608,1.26882821,175.99,175.94,5.68375582]
[1752796835811,0.56882821,175.99,175.95,29.22]
[1752796835980,0.7,175.98,175.95,29.22]
[1752796836886,0.7,175.98,175.94,5.68375582]
[1752796837216,0.7,175.98,175.92,14.21037763]
[1752796837502,0.7,175.98,175.93,29.22]
[1752796838508,6.5086,175.96,175.93,29.22]
[1752796838703,2.2953,175.95,175.91,5.71472514]
[1752796838903,0.7,175.94,175.92,29.22]
[1752796839088,0.7,175.93,175.92,29.22]
[1752796841390,0.7,175.93,175.91,0.03]
[1752796841993,6.95301138,175.93,175.91,0.03]
[1752796842404,0.7,175.92,175.91,0.03]
[1752796843314,6.384402,175.92,175.91,0.03]
[1752796843524,0.7,175.92,175.91,0.03]
[1752796843814,1.26882821,175.92,175.91,0.03]
[1752796844695,0.7,175.92,175.91,0.03]
[1752796849805,0.56882821,175.94,175.91,0.03]
[1752796850012,0.7,175.93,175.91,0.03]
[1752796850224,0.56882821,175.94,175.92,29.92]
[1752796850523,1.5953,175.95,175.92,29.92]
[1752796850709,2.16412821,175.95,175.92,29.92]
[1752796850895,1.5953,175.95,175.92,29.92]
[1752796851520,1.5953,175.95,175.93,5.68407889]
[1752796852114,1.26882821,175.98,175.94,0.68]
[1752796852418,1.26882821,175.98,175.95,29.24]
[1752796852617,1.6255,175.99,175.95,29.92]
[1752796852819,1.6255,175.99,175.96,0.68]
[1752796853325,0.06,175.99,175.97,0.68]
[1752796853617,0.06,175.99,175.98,29.24]
[1752796853821,0.06,175.99,175.98,34.92246391]
[1752796854517,0.06,175.99,175.98,35.60246391]
[1752796855017,0.06,175.99,175.98,34.92246391]
[1752796856225,0.06,175.99,175.98,29.22]
[1752796858528,0.06,175.99,175.98,34.90246391]
[1752796859028,0.06,175.99,175.98,35.58246391]
[1752796861923,0.2,176.01,176.0,26.0]
[1752796862148,0.2,176.01,176.0,55.22]
[1752796862530,0.2,176.01,176.0,55.9]
[1752796862736,0.2,176.01,176.0,61.58181818]
[1752796863033,1e-08,176.01,176.0,61.58181818]
[1752796864324,1e-08,176.01,176.0,60.90181818]
[1752796864727,0.67000001,176.01,175.98,5.68214609]
[1752796865029,0.67000001,176.01,175.99,29.22]
[1752796865620,0.67,176.0,175.99,29.22]
[1752796866909,0.67,176.0,175.99,34.90214103]
[1752796867332,0.67,176.0,175.99,29.22]
[1752796867636,0.67,176.0,175.98,34.90240888]
[1752796868235,1e-08,176.01,175.98,34.90240888]
[1752796868441,1e-08,176.01,175.98,5.68240888]
[1752796868730,0.67000001,176.01,175.99,29.22]
[1752796869732,0.67,176.0,175.99,29.22]
[1752796872830,0.67,176.0,175.96,5.68301949]
[1752796872831,2.1874,176.0,175.96,5.68301949]
[1752796873031,1.23882821,175.99,175.97,29.22]
[1752796873239,0.67,175.98,175.97,29.22]
[1752796874229,0.67,175.98,175.95,5.68336866]
[1752796874230,0.67,175.98,175.95,29.22]
[1752796874437,0.67,175.97,175.95,29.22]
[1752796876326,0.67,175.97,175.95,34.90331997]
[1752796876743,0.67,175.97,175.95,29.22]
[1752796877543,0.67,175.97,175.95,34.90341517]
[1752796878418,0.56882821,175.99,175.94,29.22]
[1752796878625,0.67,175.96,175.94,29.22]
[1752796879142,0.67,175.95,175.94,29.22]
[1752796879747,0.67,175.95,175.93,29.22]
[1752796880219,0.67,175.94,175.93,29.22]
[1752796881344,0.67,175.96,175.92,34.90432052]
[1752796881545,1.23882821,175.95,175.92,34.90432052]
[1752796882140,0.56882821,175.95,175.92,29.22]
[1752796882336,0.67,175.94,175.92,29.22]
[1752796882546,0.67,175.94,175.91,0.03]
[1752796882547,1.21882821,175.93,175.91,0.03]
[1752796883545,0.65,175.92,175.91,0.03]
[1752796884059,0.65,175.93,175.91,0.03]
[1752796886130,0.56882821,175.95,175.92,0.69]
[1752796886457,33.70062821,175.96,175.92,0.69]
[1752796887262,0.56882821,175.95,175.92,0.69]
[1752796887557,1.21882821,175.95,175.91,29.25]
[1752796887760,1.21882821,175.95,175.91,29.94]
[1752796888058,0.65,175.94,175.91,0.03]
[1752796888271,6.2529071,175.93,175.91,0.03]
[1752796888965,0.65,175.92,175.91,0.03]
[1752796890140,6.334402,175.92,175.91,0.03]
[1752796890342,7.955202,175.92,175.91,0.03]
[1752796890641,8.52403021,175.92,175.91,0.03]
[1752796891558,16.78468397,175.9,175.89,0.03]
[1752796891763,16.78468397,175.89,175.87,0.11372]
[1752796892075,0.56882821,175.88,175.87,0.11372]
[1752796892567,1.21882821,175.88,175.87,0.11372]
[1752796893066,2.76862821,175.88,175.87,0.11372]
[1752796893366,19.55331218,175.88,175.87,0.11372]
[1752796893566,25.23900697,175.88,175.83,0.03]
[1752796893764,42.78468397,175.84,175.83,0.03]
[1752796894142,43.43468397,175.84,175.83,0.03]
[1752796895654,49.12167214,175.84,175.83,0.03]
[1752796896067,5.68671687,175.85,175.83,0.03]
[1752796896272,0.56882821,175.84,175.83,0.03]
[1752796898364,6.25581638,175.84,175.83,0.03]
[1752796899359,0.56882821,175.84,175.83,0.03]
[1752796900255,0.03,175.89,175.83,0.72]
[1752796900452,0.03,175.89,175.84,29.24]
[1752796900662,0.03,175.89,175.85,0.69]
[1752796901183,0.03,175.89,175.85,26.69]
[1752796901661,0.03,175.89,175.86,0.69]
[1752796901850,0.03,175.89,175.87,5.68601808]
[1752796902267,0.03,175.89,175.88,0.69]
[1752796902982,0.03,175.89,175.88,6.37569479]
[1752796903974,0.03,175.89,175.84,29.24]
[1752796904161,0.03,175.89,175.86,0.69]
[1752796904760,0.03,175.89,175.87,0.69]
[1752796905276,0.03,175.89,175.87,5.68596414]
[1752796905457,0.03,175.89,175.88,0.69]
[1752796907482,0.03,175.89,175.86,6.37631479]
[1752796907665,0.03,175.89,175.87,0.69]
[1752796908057,0.03,175.89,175.88,0.69]
[1752796909459,0.03,175.89,175.88,6.37569479]
[1752796910454,0.03,175.89,175.88,23.16037876]
[1752796910868,0.03,175.89,175.88,52.38037876]
[1752796911069,1e-08,175.89,175.88,52.38037876]
[1752796911487,1e-08,175.89,175.88,35.59569479]
[1752796912970,1e-08,175.89,175.88,52.38037876]
[1752796915960,1e-08,175.89,175.88,35.59569479]
[1752796916183,1e-08,175.89,175.88,29.91]
[1752796916483,1e-08,175.89,175.86,6.39633761]
[1752796916689,1e-08,175.89,175.86,35.61633761]
[1752796916894,0.69000001,175.89,175.86,29.22]
[1752796917586,1e-08,175.89,175.86,29.22]
[1752796917783,1e-08,175.89,175.86,35.61620099]
[1752796918172,0.69000001,175.89,175.87,0.03]
[1752796918986,0.69,175.88,175.87,0.03]
[1752796919480,0.69000001,175.89,175.87,0.03]
[1752796920180,1e-08,175.89,175.87,0.03]
[1752796920384,1e-08,175.89,175.87,0.74]
[1752796920586,1e-08,175.89,175.88,0.71]
[1752796921694,1e-08,175.89,175.88,26.71]
[1752796921860,1e-08,175.89,175.88,43.49468397]
[1752796922210,1e-08,175.89,175.88,55.24287876]
[1752796923666,1e-08,175.89,175.88,49.18037876]
[1752796923866,1e-08,175.89,175.88,78.40037876]
[1752796925677,1e-08,175.89,175.88,6.39569479]
[1752796925864,1e-08,175.89,175.88,35.61569479]
[1752796926496,1e-08,175.89,175.88,61.61569479]
[1752796927009,1e-08,175.89,175.88,35.61569479]
[1752796927166,1e-08,175.89,175.88,29.22]
[1752796927366,0.69000001,175.89,175.87,0.03]
[1752796927792,0.69,175.88,175.87,0.03]
[1752796928087,0.69000001,175.89,175.87,0.03]
[1752796928272,0.69,175.88,175.87,0.03]
[1752796930389,1.25882821,175.88,175.87,0.03]
[1752796931790,13.157823,175.88,175.87,0.03]
[1752796933894,7.47212821,175.88,175.87,0.03]
[1752796934097,6.2133,175.88,175.87,0.03]
[1752796934392,6.9033,175.88,175.87,0.03]
[1752796939276,12.58899479,175.88,175.87,0.03]
[1752796939793,6.9033,175.88,175.87,0.03]
[1752796940100,1e-08,175.89,175.87,0.74]
[1752796940478,1e-08,175.89,175.88,5.68569479]
[1752796940985,1e-08,175.89,175.88,6.39569479]
[1752796942177,1e-08,175.89,175.88,5.68569479]
[1752796942383,1e-08,175.89,175.88,6.39569479]
[1752796943787,1e-08,175.89,175.88,0.71]
[1752796943981,1e-08,175.89,175.87,5.71592179]
[1752796944201,1e-08,175.89,175.87,0.03]
[1752796944738,1e-08,175.89,175.88,0.71]
[1752796946101,1e-08,175.89,175.87,0.03]
[1752796947284,16.78468397,175.96,175.87,0.74]
[1752796947488,148.3,175.95,175.87,0.74]
[1752796948192,148.3,175.95,175.87,0.03]
[1752796948602,6.1433,175.94,175.87,0.03]
[1752796948990,35.4833,175.94,175.87,0.03]
[1752796949319,26.0,175.9,175.87,0.03]
[1752796949802,0.42,175.89,175.87,0.03]
[1752796950300,0.42,175.88,175.87,0.03]
[1752796951209,6.10569479,175.88,175.87,0.03]
[1752796953395,1.5287,175.9,175.87,0.74]
[1752796953599,6.1433,175.94,175.88,0.71]
[1752796953924,1.53,175.95,175.88,0.71]
[1752796955215,7.21355871,175.95,175.88,6.39538896]
[1752796955509,0.42,175.94,175.87,0.03]
[1752796956389,0.42,175.94,175.87,0.74]
[1752796957118,5.68407889,175.93,175.87,0.74]
[1752796958308,5.6837706,175.94,175.87,6.42590198]
[1752796958617,8.4241,175.99,175.9,26.0]
[1752796958910,8.4241,175.99,175.91,30.03]
[1752796958911,8.0041,175.99,175.91,30.03]
[1752796959110,8.0041,175.99,175.92,5.684402]
[1752796959331,8.0041,175.99,175.93,0.71]
[1752796959493,1e-08,176.01,175.93,26.71]
[1752796959692,1e-08,176.01,175.94,0.71]
[1752796960297,6.10155869,176.01,175.94,0.71]
[1752796961112,5.68214103,175.99,175.94,0.71]
[1752796961313,0.42,176.0,175.94,0.71]
[1752796961501,6.10191246,176.0,175.94,0.71]
[1752796962096,5.68191246,176.0,175.94,6.39370842]
[1752796962397,5.68191246,176.0,175.94,5.68370842]
[1752796962592,5.68191246,176.0,175.95,0.71]
[1752796962900,5.68191246,176.0,175.94,5.68370842]
[1752796963100,1e-08,176.01,175.96,0.71]
[1752796963514,0.42000001,176.01,175.96,0.71]
[1752796963703,0.42,176.0,175.93,0.71]
[1752796964797,5.68214103,175.99,175.93,0.71]
[1752796965214,6.10214103,175.99,175.93,0.71]
[1752796966904,43.20468397,175.98,175.88,0.71]
[1752796967104,6.5598,175.97,175.88,0.71]
[1752796967416,2.0297,175.96,175.88,0.71]
[1752796967622,0.42,175.95,175.88,0.71]
[1752796967805,6.1398,175.97,175.88,26.71]
[1752796968012,6.1398,175.97,175.89,0.71]
[1752796968630,6.5598,175.97,175.89,0.71]
[1752796969010,6.10310979,175.96,175.89,0.71]
[1752796969219,6.10310979,175.96,175.89,32.39532705]
[1752796969423,0.42,175.95,175.89,0.71]
[1752796970324,0.42,175.95,175.87,6.42593939]
[1752796971001,5.68375582,175.94,175.87,5.71593939]
[1752796971219,6.1398,175.97,175.88,0.71]
[1752796972013,12.24267252,175.97,175.88,0.71]
[1752796972414,11.82267252,175.97,175.88,0.71]
[1752796972630,0.42,175.96,175.88,0.71]
[1752796973130,11.82267252,175.97,175.88,0.71]
[1752796973432,11.82267252,175.97,175.88,6.39558846]
[1752796973601,11.82267252,175.97,175.88,5.68558846]
[1752796973805,11.82267252,175.97,175.89,0.72]
[1752796974331,12.24267252,175.97,175.89,0.72]
[1752796974836,0.42,175.96,175.89,0.72]
[1752796975433,5.68343279,175.95,175.89,0.72]
[1752796976024,6.10343279,175.95,175.89,0.72]
[1752796976633,5.68343279,175.95,175.89,0.72]
[1752796977626,19.89088428,175.96,175.89,0.72]
[1752796977933,20.31088428,175.96,175.89,0.72]
[1752796978133,0.42,175.95,175.89,0.72]
[1752796978343,17.20468397,175.95,175.87,0.75]
[1752796978507,0.42,175.94,175.87,0.75]
[1752796978712,7.29134612,176.01,175.91,16.78468397]
[1752796978907,0.42,176.0,175.92,0.72]
[1752796979114,0.42,176.0,175.93,29.64]
[1752796979334,0.42,176.0,175.88,16.78468397]
[1752796979335,43.20468397,176.0,175.88,26.0]
[1752796979531,42.78468397,176.0,175.89,30.36]
[1752796979732,20.3074936,175.99,175.89,0.72]
[1752796979932,20.3074936,175.99,175.9,29.62]
[1752796980123,19.8874936,175.99,175.9,29.62]
[1752796980440,0.42,175.98,175.91,0.72]
[1752796980619,5.68214103,175.99,175.91,0.72]
[1752796980927,1e-08,176.01,175.93,26.0]
[1752796981238,1e-08,176.01,175.94,17.50468397]
[1752796981439,1e-08,176.01,175.95,29.62]
[1752796981743,1e-08,176.01,175.95,30.34]
[1752796982037,0.42000001,176.01,175.95,29.62]
[1752796982340,0.42000001,176.01,175.93,0.72]
[1752796982535,0.42000001,176.01,175.95,29.64]
[1752796983741,5.68181818,176.0,175.95,29.64]
[1752796983927,5.68181818,176.0,175.96,0.72]
[1752796984120,1e-08,176.01,175.96,0.72]
[1752796984327,5.68150066,176.01,175.96,0.72]
[1752796984540,5.68150066,176.01,175.97,0.72]
[1752796984733,5.68150066,176.01,175.98,0.72]
[1752796984940,5.68150066,176.01,175.96,0.72]
[1752796985119,5.68150066,176.01,175.97,0.72]
[1752796985317,5.68150066,176.01,175.97,29.62]
[1752796985625,5.68150066,176.01,175.96,29.62]
[1752796985825,5.68150066,176.01,175.96,30.34]
[1752796986033,6.10150066,176.01,175.96,0.72]
[1752796986232,6.10150066,176.01,175.96,30.34]
[1752796986438,5.68150066,176.01,175.96,30.34]
[1752796986637,5.68150066,176.01,175.97,0.72]
[1752796986839,5.68150066,176.01,175.98,0.72]
[1752796987037,5.68150066,176.01,175.99,0.72]
[1752796987038,1e-08,176.01,175.99,0.72]
[1752796987235,1e-08,176.01,176.0,0.72]
[1752796987729,1e-08,176.01,176.0,17.50468397]
[1752796987929,0.2,176.02,176.0,23.18650215]
[1752796988227,0.2,176.02,176.01,30.32]
[1752796990121,0.2,176.02,176.01,36.00149536]
[1752796991726,1e-08,176.02,176.01,52.78617933]
[1752796992130,1e-08,176.05,176.04,42.78468397]
[1752796992436,0.2,176.08,176.04,73.90108397]
[1752796992635,0.2,176.08,176.05,17.50468397]
[1752796992836,0.2,176.08,176.07,42.78468397]
[1752796992837,1e-08,176.08,176.07,42.78468397]
[1752796993018,0.2,176.15,176.08,16.78468397]
[1752796993218,0.2,176.15,176.08,17.50468397]
[1752796993431,0.2,176.15,176.08,45.88605893]
[1752796993641,0.2,176.15,176.11,26.0]
[1752796993839,0.2,176.19,176.15,26.0]
[1752796994030,0.2,176.19,176.16,35.23650102]
[1752796994347,0.2,176.19,176.16,64.32498707]
[1752796994534,0.2,176.19,176.17,29.08687576]
[1752796995049,0.2,176.19,176.18,0.72]
[1752796995344,5.8758521,176.19,176.18,29.56]
[1752796995650,0.2,176.19,176.18,29.56]
[1752796995944,0.2,176.19,176.17,28.36687576]
[1752796996143,0.2,176.19,176.18,29.56]
[1752796996835,0.2,176.19,176.18,30.28]
[1752796997275,0.2,176.19,176.18,64.32949392]
[1752796997745,0.2,176.19,176.18,107.11417789]
[1752796997941,0.2,176.19,176.18,81.11417789]
[1752796998323,6.36305165,176.28,176.21,26.0]
[1752796998524,6.36305165,176.28,176.22,30.34]
[1752796998825,6.36305165,176.28,176.22,58.49890875]
[1752796999049,0.69,176.28,176.22,58.49890875]
[1752796999241,12.33262792,176.3,176.23,0.72]
[1752796999428,12.33262792,176.3,176.24,29.6]
[1752796999627,6.6602,176.3,176.25,0.72]
[1752796999826,6.6602,176.3,176.26,30.32]
[1752797000332,12.33239004,176.3,176.26,30.32]
[1752797000651,6.6602,176.3,176.26,30.32]
[1752797001245,12.33243009,176.3,176.26,30.32]
[1752797001554,12.33243009,176.3,176.26,29.6]
[1752797002153,12.33243009,176.3,176.26,30.32]
[1752797002351,0.69,176.32,176.26,30.32]
[1752797002555,27.5675,176.33,176.27,0.72]
[1752797002757,27.5675,176.33,176.28,29.56]
[1752797002758,33.92871541,176.33,176.28,29.56]
[1752797003056,0.69,176.32,176.28,29.56]
[1752797003355,0.69,176.32,176.29,29.56]
[1752797004347,6.36170923,176.32,176.29,29.56]
[1752797004857,33.23873975,176.33,176.29,29.56]
[1752797005258,33.92873975,176.33,176.29,29.56]
[1752797005458,0.69,176.32,176.29,29.56]
[1752797006441,33.23873975,176.33,176.23,36.64509365]
[1752797006638,7.23873975,176.33,176.27,0.69]
[1752797006841,7.23873975,176.33,176.28,29.52]
[1752797007255,7.23873975,176.33,176.28,30.21]
[1752797007449,12.58243252,176.34,176.29,0.69]
[1752797007648,26.0,176.36,176.3,0.69]
[1752797007850,26.69,176.36,176.31,29.52]
[1752797008064,0.69,176.35,176.25,0.69]
[1752797008252,17.47468397,176.35,176.26,29.52]
[1752797008562,6.3608631,176.34,176.26,29.52]
[1752797008750,0.69,176.33,176.26,29.52]
[1752797009450,0.69,176.33,176.27,29.54]
[1752797009963,5.6708631,176.34,176.28,0.69]
[1752797010965,0.69,176.33,176.25,0.69]
[1752797011264,32.586,176.31,176.23,0.69]
[1752797011569,0.69,176.3,176.24,29.56]
[1752797012676,5.67223966,176.3,176.25,0.69]
[1752797012884,5.67182782,176.32,176.25,6.36371605]
[1752797013054,5.67182782,176.32,176.26,0.69]
[1752797014359,5.67128316,176.33,176.26,6.36337574]
[1752797014567,5.67128316,176.33,176.26,5.67337574]
[1752797014873,0.69,176.32,176.25,0.69]
[1752797015042,5.67128316,176.33,176.25,0.69]
[1752797015767,5.67128316,176.33,176.26,29.56]
[1752797015969,5.67128316,176.33,176.27,0.69]
[1752797017047,5.67054153,176.35,176.27,0.69]
[1752797017470,6.36054153,176.35,176.27,0.69]
[1752797018753,6.36054153,176.35,176.28,5.67279328]
[1752797018949,6.36054153,176.35,176.29,0.69]
[1752797019165,6.36054153,176.35,176.3,29.54]
[1752797019549,6.36054153,176.35,176.3,30.23]
[1752797020876,6.36054153,176.35,176.3,0.69]
[1752797021060,5.67054153,176.35,176.31,0.69]
[1752797021270,5.67054153,176.35,176.32,29.52]
[1752797021853,5.67054153,176.35,176.31,0.69]
[1752797022068,5.67054153,176.35,176.32,29.5]
[1752797022462,0.69,176.34,176.32,29.5]
[1752797023478,0.69,176.34,176.31,29.5]
[1752797023649,6.36114186,176.34,176.31,29.5]
[1752797024066,5.67114186,176.34,176.31,29.5]
[1752797024259,6.36114186,176.34,176.31,29.5]
[1752797024571,0.69,176.33,176.29,29.5]
[1752797024876,0.69,176.32,176.29,29.5]
[1752797025072,6.36114186,176.34,176.29,29.5]
[1752797025278,6.36114186,176.34,176.29,30.19]
[1752797025473,5.67114186,176.34,176.3,0.69]
[1752797025680,5.67114186,176.34,176.31,0.69]
[1752797025864,5.67054153,176.35,176.31,0.69]
[1752797026180,0.06,176.34,176.31,0.69]
[1752797026874,0.06,176.34,176.32,0.69]
[1752797027093,0.06,176.34,176.33,29.5]
[1752797027299,0.06,176.34,176.33,30.19]
[1752797027977,0.06,176.34,176.28,7.30148946]
[1752797028166,0.06,176.34,176.3,0.69]
[1752797028656,0.06,176.34,176.29,29.5]
[1752797028965,0.06,176.34,176.31,0.69]
[1752797029354,0.06,176.34,176.32,0.69]
[1752797029553,0.06,176.34,176.33,29.52]
[1752797029754,0.06,176.34,176.3,0.69]
[1752797030057,0.06,176.34,176.31,29.52]
[1752797030271,0.06,176.34,176.31,30.21]
[1752797030673,0.06,176.34,176.28,5.67276103]
[1752797030862,0.75,176.34,176.29,30.19]
[1752797031672,0.75,176.34,176.3,29.54]
[1752797032061,0.06,176.34,176.3,29.54]
[1752797032376,0.06,176.34,176.31,0.69]
[1752797032780,0.06,176.34,176.3,29.54]
[1752797032967,0.06,176.34,176.3,30.24]
[1752797033165,0.77,176.34,176.3,29.54]
[1752797033380,0.71,176.33,176.3,29.54]
[1752797033687,0.06,176.34,176.31,0.7]
[1752797033857,0.06,176.34,176.3,29.52]
[1752797034258,0.06,176.34,176.3,30.22]
[1752797034811,0.77,176.34,176.3,30.22]
[1752797035290,5.67118471,176.33,176.3,30.22]
[1752797035653,5.67118471,176.33,176.3,0.7]
[1752797035858,5.67118471,176.33,176.3,30.2]
[1752797036360,5.67118471,176.33,176.31,0.7]
[1752797037777,0.06,176.34,176.32,0.7]
[1752797038281,0.06,176.34,176.33,0.7]
[1752797040791,0.06,176.34,176.33,6.37118471]
[1752797040973,0.06,176.34,176.33,0.7]
[1752797041886,0.06,176.34,176.33,6.37118471]
[1752797042786,0.06,176.34,176.33,0.7]
[1752797044870,0.06,176.34,176.33,29.44]
[1752797045564,0.06,176.34,176.33,30.14]
[1752797045760,0.06,176.34,176.33,29.44]
[1752797046396,0.06,176.34,176.33,30.14]
[1752797047390,0.06,176.38,176.33,35.81118471]
[1752797047696,0.06,176.38,176.34,0.7]
[1752797048692,0.06,176.38,176.34,6.37069149]
[1752797048986,0.06,176.38,176.35,0.7]
[1752797049187,0.06,176.38,176.36,29.42]
[1752797049369,0.06,176.38,176.37,0.7]
[1752797049834,0.71,176.49,176.37,0.7]
[1752797050000,6.3760434,176.49,176.39,26.0]
[1752797050296,6.3760434,176.49,176.4,30.12]
[1752797050504,6.3760434,176.49,176.42,5.66829157]
[1752797050803,6.3760434,176.49,176.43,0.7]
[1752797050984,6.3760434,176.49,176.44,29.42]
[1752797051182,6.3760434,176.49,176.44,30.12]
[1752797051493,5.6660434,176.49,176.45,0.7]
[1752797051794,5.6660434,176.49,176.46,0.7]
[1752797052093,5.66572237,176.5,176.46,0.7]
[1752797052272,5.66572237,176.5,176.44,29.42]
[1752797052273,6.37572237,176.5,176.44,30.12]
[1752797052595,5.66572237,176.5,176.44,35.08764798]
[1752797052897,0.1,176.52,176.45,0.7]
[1752797053791,0.1,176.52,176.47,26.0]
[1752797054098,0.1,176.52,176.49,5.6660434]
[1752797054808,0.1,176.52,176.5,0.7]
[1752797055190,0.1,176.52,176.51,29.38]
[1752797056003,0.1,176.52,176.51,30.08]
[1752797056582,0.1,176.52,176.51,0.7]
[1752797056795,0.1,176.52,176.51,30.06]
[1752797058105,0.1,176.52,176.51,29.36]
[1752797058990,0.1,176.52,176.51,29.54]
[1752797059787,6.47518245,176.52,176.46,0.7]
[1752797060106,0.1,176.52,176.49,29.54]
[1752797060483,0.1,176.52,176.5,0.7]
[1752797060683,0.1,176.52,176.51,0.7]
[1752797061207,0.1,176.52,176.51,26.7]
[1752797062008,0.1,176.52,176.51,32.36540139]
[1752797062589,0.1,176.52,176.51,49.15008536]
[1752797062790,2.268,176.65,176.55,26.0]
[1752797063100,2.268,176.65,176.56,30.25]
[1752797063101,7.92898389,176.65,176.56,30.25]
[1752797063294,1.598,176.65,176.57,0.71]
[1752797063604,27.598,176.65,176.57,0.71]
[1752797064007,1.598,176.65,176.58,5.66315551]
[1752797064304,5.66026181,176.68,176.59,30.23]